Workbook

Sheet TimesheetDB (hidden)
A1: Date | B1: Start Time | C1: End Time | D1: Lunch | E1: Break | F1: Code | G1: Hours | H1: Overtime
A2: 2016-04-20 | B2: 09:00:00 | C2: 17:00:00 | D2: 00:45:00 | E2: 00:15:00 | F2: Unpaid | G2: =IF(AND(TimeSheet[[#This Row],[End Time]]<>"",TimeSheet[[#This Row],[Start Time]]<>""),TimeSheet[[#This Row],[End Time]]-SUM(TimeSheet[[#This Row],[Start Time]],TimeSheet[[#This Row],[Lunch]],TimeSheet[[#This Row],[Break]]),"") -> 07:00:00 | H2: =IFERROR(IF(dd_ot="Yes",IF(TimeSheet[[#This Row],[Hours]]-ot_threshold>0,TimeSheet[[#This Row],[Hours]]-ot_threshold,""),""),"") -> 
A3: 2016-04-19 | B3: 09:00:00 | C3: 17:00:00 | D3: 00:30:00 | E3: 00:30:00 | F3: Sick | G3: =IF(AND(TimeSheet[[#This Row],[End Time]]<>"",TimeSheet[[#This Row],[Start Time]]<>""),TimeSheet[[#This Row],[End Time]]-SUM(TimeSheet[[#This Row],[Start Time]],TimeSheet[[#This Row],[Lunch]],TimeSheet[[#This Row],[Break]]),"") -> 07:00:00 | H3: =IFERROR(IF(dd_ot="Yes",IF(TimeSheet[[#This Row],[Hours]]-ot_threshold>0,TimeSheet[[#This Row],[Hours]]-ot_threshold,""),""),"") -> 00:00:00
A4: 2016-04-18 | B4: 09:00:00 | C4: 17:00:00 | D4: 01:00:00 | F4: Holiday | G4: =IF(AND(TimeSheet[[#This Row],[End Time]]<>"",TimeSheet[[#This Row],[Start Time]]<>""),TimeSheet[[#This Row],[End Time]]-SUM(TimeSheet[[#This Row],[Start Time]],TimeSheet[[#This Row],[Lunch]],TimeSheet[[#This Row],[Break]]),"") -> 07:00:00 | H4: =IFERROR(IF(dd_ot="Yes",IF(TimeSheet[[#This Row],[Hours]]-ot_threshold>0,TimeSheet[[#This Row],[Hours]]-ot_threshold,""),""),"") -> 
A5: 2016-04-17 | B5: 09:00:00 | C5: 17:00:00 | D5: 01:00:00 | F5: Holiday | G5: =IF(AND(TimeSheet[[#This Row],[End Time]]<>"",TimeSheet[[#This Row],[Start Time]]<>""),TimeSheet[[#This Row],[End Time]]-SUM(TimeSheet[[#This Row],[Start Time]],TimeSheet[[#This Row],[Lunch]],TimeSheet[[#This Row],[Break]]),"") -> 07:00:00 | H5: =IFERROR(IF(dd_ot="Yes",IF(TimeSheet[[#This Row],[Hours]]-ot_threshold>0,TimeSheet[[#This Row],[Hours]]-ot_threshold,""),""),"") -> 
A6: 2016-04-16 | B6: 09:00:00 | C6: 17:00:00 | D6: 01:00:00 | E6: 00:30:00 | F6: Holiday | G6: =IF(AND(TimeSheet[[#This Row],[End Time]]<>"",TimeSheet[[#This Row],[Start Time]]<>""),TimeSheet[[#This Row],[End Time]]-SUM(TimeSheet[[#This Row],[Start Time]],TimeSheet[[#This Row],[Lunch]],TimeSheet[[#This Row],[Break]]),"") -> 06:30:00 | H6: =IFERROR(IF(dd_ot="Yes",IF(TimeSheet[[#This Row],[Hours]]-ot_threshold>0,TimeSheet[[#This Row],[Hours]]-ot_threshold,""),""),"") -> 
A7: 2016-04-15 | B7: 09:00:00 | C7: 18:00:00 | D7: 01:00:00 | G7: =IF(AND(TimeSheet[[#This Row],[End Time]]<>"",TimeSheet[[#This Row],[Start Time]]<>""),TimeSheet[[#This Row],[End Time]]-SUM(TimeSheet[[#This Row],[Start Time]],TimeSheet[[#This Row],[Lunch]],TimeSheet[[#This Row],[Break]]),"") -> 08:00:00 | H7: =IFERROR(IF(dd_ot="Yes",IF(TimeSheet[[#This Row],[Hours]]-ot_threshold>0,TimeSheet[[#This Row],[Hours]]-ot_threshold,""),""),"") -> 01:00:00
A8: 2016-04-14 | B8: 09:00:00 | C8: 18:00:00 | D8: 01:00:00 | G8: =IF(AND(TimeSheet[[#This Row],[End Time]]<>"",TimeSheet[[#This Row],[Start Time]]<>""),TimeSheet[[#This Row],[End Time]]-SUM(TimeSheet[[#This Row],[Start Time]],TimeSheet[[#This Row],[Lunch]],TimeSheet[[#This Row],[Break]]),"") -> 08:00:00 | H8: =IFERROR(IF(dd_ot="Yes",IF(TimeSheet[[#This Row],[Hours]]-ot_threshold>0,TimeSheet[[#This Row],[Hours]]-ot_threshold,""),""),"") -> 01:00:00
A9: 2016-04-13 | B9: 09:00:00 | C9: 18:00:00 | D9: 01:00:00 | G9: =IF(AND(TimeSheet[[#This Row],[End Time]]<>"",TimeSheet[[#This Row],[Start Time]]<>""),TimeSheet[[#This Row],[End Time]]-SUM(TimeSheet[[#This Row],[Start Time]],TimeSheet[[#This Row],[Lunch]],TimeSheet[[#This Row],[Break]]),"") -> 08:00:00 | H9: =IFERROR(IF(dd_ot="Yes",IF(TimeSheet[[#This Row],[Hours]]-ot_threshold>0,TimeSheet[[#This Row],[Hours]]-ot_threshold,""),""),"") -> 01:00:00
A10: 2016-04-12 | B10: 09:00:00 | C10: 18:00:00 | D10: 01:00:00 | G10: =IF(AND(TimeSheet[[#This Row],[End Time]]<>"",TimeSheet[[#This Row],[Start Time]]<>""),TimeSheet[[#This Row],[End Time]]-SUM(TimeSheet[[#This Row],[Start Time]],TimeSheet[[#This Row],[Lunch]],TimeSheet[[#This Row],[Break]]),"") -> 08:00:00 | H10: =IFERROR(IF(dd_ot="Yes",IF(TimeSheet[[#This Row],[Hours]]-ot_threshold>0,TimeSheet[[#This Row],[Hours]]-ot_threshold,""),""),"") -> 01:00:00
A11: 2016-04-11 | B11: 09:00:00 | C11: 18:00:00 | D11: 01:00:00 | G11: =IF(AND(TimeSheet[[#This Row],[End Time]]<>"",TimeSheet[[#This Row],[Start Time]]<>""),TimeSheet[[#This Row],[End Time]]-SUM(TimeSheet[[#This Row],[Start Time]],TimeSheet[[#This Row],[Lunch]],TimeSheet[[#This Row],[Break]]),"") -> 08:00:00 | H11: =IFERROR(IF(dd_ot="Yes",IF(TimeSheet[[#This Row],[Hours]]-ot_threshold>0,TimeSheet[[#This Row],[Hours]]-ot_threshold,""),""),"") -> 01:00:00
A12: 2016-04-10 | B12: 09:00:00 | C12: 18:00:00 | D12: 01:00:00 | G12: =IF(AND(TimeSheet[[#This Row],[End Time]]<>"",TimeSheet[[#This Row],[Start Time]]<>""),TimeSheet[[#This Row],[End Time]]-SUM(TimeSheet[[#This Row],[Start Time]],TimeSheet[[#This Row],[Lunch]],TimeSheet[[#This Row],[Break]]),"") -> 08:00:00 | H12: =IFERROR(IF(dd_ot="Yes",IF(TimeSheet[[#This Row],[Hours]]-ot_threshold>0,TimeSheet[[#This Row],[Hours]]-ot_threshold,""),""),"") -> 01:00:00
A13: 2016-04-09 | B13: 09:00:00 | C13: 18:00:00 | D13: 01:00:00 | G13: =IF(AND(TimeSheet[[#This Row],[End Time]]<>"",TimeSheet[[#This Row],[Start Time]]<>""),TimeSheet[[#This Row],[End Time]]-SUM(TimeSheet[[#This Row],[Start Time]],TimeSheet[[#This Row],[Lunch]],TimeSheet[[#This Row],[Break]]),"") -> 08:00:00 | H13: =IFERROR(IF(dd_ot="Yes",IF(TimeSheet[[#This Row],[Hours]]-ot_threshold>0,TimeSheet[[#This Row],[Hours]]-ot_threshold,""),""),"") -> 01:00:00
A14: 2016-04-08 | B14: 09:00:00 | C14: 18:00:00 | D14: 01:00:00 | G14: =IF(AND(TimeSheet[[#This Row],[End Time]]<>"",TimeSheet[[#This Row],[Start Time]]<>""),TimeSheet[[#This Row],[End Time]]-SUM(TimeSheet[[#This Row],[Start Time]],TimeSheet[[#This Row],[Lunch]],TimeSheet[[#This Row],[Break]]),"") -> 08:00:00 | H14: =IFERROR(IF(dd_ot="Yes",IF(TimeSheet[[#This Row],[Hours]]-ot_threshold>0,TimeSheet[[#This Row],[Hours]]-ot_threshold,""),""),"") -> 01:00:00
A15: 2016-04-07 | B15: 09:00:00 | C15: 18:00:00 | D15: 01:00:00 | G15: =IF(AND(TimeSheet[[#This Row],[End Time]]<>"",TimeSheet[[#This Row],[Start Time]]<>""),TimeSheet[[#This Row],[End Time]]-SUM(TimeSheet[[#This Row],[Start Time]],TimeSheet[[#This Row],[Lunch]],TimeSheet[[#This Row],[Break]]),"") -> 08:00:00 | H15: =IFERROR(IF(dd_ot="Yes",IF(TimeSheet[[#This Row],[Hours]]-ot_threshold>0,TimeSheet[[#This Row],[Hours]]-ot_threshold,""),""),"") -> 01:00:00
A16: 2016-04-06 | B16: 09:00:00 | C16: 18:00:00 | D16: 01:00:00 | G16: =IF(AND(TimeSheet[[#This Row],[End Time]]<>"",TimeSheet[[#This Row],[Start Time]]<>""),TimeSheet[[#This Row],[End Time]]-SUM(TimeSheet[[#This Row],[Start Time]],TimeSheet[[#This Row],[Lunch]],TimeSheet[[#This Row],[Break]]),"") -> 08:00:00 | H16: =IFERROR(IF(dd_ot="Yes",IF(TimeSheet[[#This Row],[Hours]]-ot_threshold>0,TimeSheet[[#This Row],[Hours]]-ot_threshold,""),""),"") -> 01:00:00
A17: 2016-04-05 | B17: 09:00:00 | C17: 18:00:00 | D17: 01:00:00 | E17: 00:20:00 | G17: =IF(AND(TimeSheet[[#This Row],[End Time]]<>"",TimeSheet[[#This Row],[Start Time]]<>""),TimeSheet[[#This Row],[End Time]]-SUM(TimeSheet[[#This Row],[Start Time]],TimeSheet[[#This Row],[Lunch]],TimeSheet[[#This Row],[Break]]),"") -> 07:40:00 | H17: =IFERROR(IF(dd_ot="Yes",IF(TimeSheet[[#This Row],[Hours]]-ot_threshold>0,TimeSheet[[#This Row],[Hours]]-ot_threshold,""),""),"") -> 00:40:00
A18: 2016-04-04 | B18: 09:00:00 | C18: 16:00:00 | D18: 01:00:00 | G18: =IF(AND(TimeSheet[[#This Row],[End Time]]<>"",TimeSheet[[#This Row],[Start Time]]<>""),TimeSheet[[#This Row],[End Time]]-SUM(TimeSheet[[#This Row],[Start Time]],TimeSheet[[#This Row],[Lunch]],TimeSheet[[#This Row],[Break]]),"") -> 06:00:00 | H18: =IFERROR(IF(dd_ot="Yes",IF(TimeSheet[[#This Row],[Hours]]-ot_threshold>0,TimeSheet[[#This Row],[Hours]]-ot_threshold,""),""),"") -> 
A19: 2016-04-03 | B19: 09:00:00 | C19: 18:00:00 | D19: 01:00:00 | G19: =IF(AND(TimeSheet[[#This Row],[End Time]]<>"",TimeSheet[[#This Row],[Start Time]]<>""),TimeSheet[[#This Row],[End Time]]-SUM(TimeSheet[[#This Row],[Start Time]],TimeSheet[[#This Row],[Lunch]],TimeSheet[[#This Row],[Break]]),"") -> 08:00:00 | H19: =IFERROR(IF(dd_ot="Yes",IF(TimeSheet[[#This Row],[Hours]]-ot_threshold>0,TimeSheet[[#This Row],[Hours]]-ot_threshold,""),""),"") -> 01:00:00
A20: 2016-04-02 | B20: 09:00:00 | C20: 18:00:00 | D20: 01:00:00 | G20: =IF(AND(TimeSheet[[#This Row],[End Time]]<>"",TimeSheet[[#This Row],[Start Time]]<>""),TimeSheet[[#This Row],[End Time]]-SUM(TimeSheet[[#This Row],[Start Time]],TimeSheet[[#This Row],[Lunch]],TimeSheet[[#This Row],[Break]]),"") -> 08:00:00 | H20: =IFERROR(IF(dd_ot="Yes",IF(TimeSheet[[#This Row],[Hours]]-ot_threshold>0,TimeSheet[[#This Row],[Hours]]-ot_threshold,""),""),"") -> 01:00:00
A21: 2016-04-01 | B21: 09:00:00 | C21: 18:00:00 | D21: 01:00:00 | G21: =IF(AND(TimeSheet[[#This Row],[End Time]]<>"",TimeSheet[[#This Row],[Start Time]]<>""),TimeSheet[[#This Row],[End Time]]-SUM(TimeSheet[[#This Row],[Start Time]],TimeSheet[[#This Row],[Lunch]],TimeSheet[[#This Row],[Break]]),"") -> 08:00:00 | H21: =IFERROR(IF(dd_ot="Yes",IF(TimeSheet[[#This Row],[Hours]]-ot_threshold>0,TimeSheet[[#This Row],[Hours]]-ot_threshold,""),""),"") -> 01:00:00
A22: 2016-03-31 | B22: 09:00:00 | C22: 18:00:00 | D22: 01:00:00 | G22: =IF(AND(TimeSheet[[#This Row],[End Time]]<>"",TimeSheet[[#This Row],[Start Time]]<>""),TimeSheet[[#This Row],[End Time]]-SUM(TimeSheet[[#This Row],[Start Time]],TimeSheet[[#This Row],[Lunch]],TimeSheet[[#This Row],[Break]]),"") -> 08:00:00 | H22: =IFERROR(IF(dd_ot="Yes",IF(TimeSheet[[#This Row],[Hours]]-ot_threshold>0,TimeSheet[[#This Row],[Hours]]-ot_threshold,""),""),"") -> 01:00:00
A23: 2016-03-30 | B23: 09:00:00 | C23: 18:00:00 | D23: 00:00:00 | G23: =IF(AND(TimeSheet[[#This Row],[End Time]]<>"",TimeSheet[[#This Row],[Start Time]]<>""),TimeSheet[[#This Row],[End Time]]-SUM(TimeSheet[[#This Row],[Start Time]],TimeSheet[[#This Row],[Lunch]],TimeSheet[[#This Row],[Break]]),"") -> 09:00:00 | H23: =IFERROR(IF(dd_ot="Yes",IF(TimeSheet[[#This Row],[Hours]]-ot_threshold>0,TimeSheet[[#This Row],[Hours]]-ot_threshold,""),""),"") -> 02:00:00
A24: 2016-03-29 | B24: 09:00:00 | C24: 18:00:00 | D24: 00:00:00 | G24: =IF(AND(TimeSheet[[#This Row],[End Time]]<>"",TimeSheet[[#This Row],[Start Time]]<>""),TimeSheet[[#This Row],[End Time]]-SUM(TimeSheet[[#This Row],[Start Time]],TimeSheet[[#This Row],[Lunch]],TimeSheet[[#This Row],[Break]]),"") -> 09:00:00 | H24: =IFERROR(IF(dd_ot="Yes",IF(TimeSheet[[#This Row],[Hours]]-ot_threshold>0,TimeSheet[[#This Row],[Hours]]-ot_threshold,""),""),"") -> 02:00:00
A25: 2016-03-28 | B25: 09:00:00 | C25: 18:00:00 | D25: 01:00:00 | E25: 00:00:00 | G25: =IF(AND(TimeSheet[[#This Row],[End Time]]<>"",TimeSheet[[#This Row],[Start Time]]<>""),TimeSheet[[#This Row],[End Time]]-SUM(TimeSheet[[#This Row],[Start Time]],TimeSheet[[#This Row],[Lunch]],TimeSheet[[#This Row],[Break]]),"") -> 08:00:00 | H25: =IFERROR(IF(dd_ot="Yes",IF(TimeSheet[[#This Row],[Hours]]-ot_threshold>0,TimeSheet[[#This Row],[Hours]]-ot_threshold,""),""),"") -> 01:00:00
A26: 2016-03-27 | B26: 09:00:00 | C26: 18:00:00 | D26: 01:00:00 | E26: 00:00:00 | G26: =IF(AND(TimeSheet[[#This Row],[End Time]]<>"",TimeSheet[[#This Row],[Start Time]]<>""),TimeSheet[[#This Row],[End Time]]-SUM(TimeSheet[[#This Row],[Start Time]],TimeSheet[[#This Row],[Lunch]],TimeSheet[[#This Row],[Break]]),"") -> 08:00:00 | H26: =IFERROR(IF(dd_ot="Yes",IF(TimeSheet[[#This Row],[Hours]]-ot_threshold>0,TimeSheet[[#This Row],[Hours]]-ot_threshold,""),""),"") -> 01:00:00

Sheet Timesheet
A1: 0 | B1: r/Excel TimeSheet
B13: Hourly Threshold | C13: 07:00:00 | E13: Date | F13: Hourly | G13: Overtime | H13: Unpaid Time | I13: Gross Pay | J13: Overtime Pay | K13: Sick | L13: Holiday | M13: Unpaid | N13: Other | O13: Total
B14: Overtime | C14: Yes | E14: =IF(ViewSelect="Day",E15-1,EDATE(E15,-1)) -> 2016-04-09 | F14: =IF(ViewSelect="day",SUMIFS(TimeSheet[Hours],TimeSheet[Date],$E14),SUMIFS(TimeSheet[Hours],TimeSheet[Date],">="&$E14,TimeSheet[Date],"<="&EOMONTH($E14,0))) -> 0.3333333333 | G14: =IF(ViewSelect="day",SUMIFS(TimeSheet[Overtime],TimeSheet[Date],$E14),SUMIFS(TimeSheet[Overtime],TimeSheet[Date],">="&$E14,TimeSheet[Date],"<="&EOMONTH($E14,0))) -> 0.04166666667 | H14: =IF(ViewSelect="day",SUMIFS(TimeSheet[Hours],TimeSheet[Date],$E14,TimeSheet[Code],"Unpaid"),SUMIFS(TimeSheet[Hours],TimeSheet[Date],">="&$E14,TimeSheet[Date],"<="&EOMONTH($E14,0),TimeSheet[Code],"Unpaid")) -> 0 | I14: =((HourPay[[#This Row],[Hourly]])*24*$C$15)+((HourPay[[#This Row],[Overtime]])*24*$C$16) -> 114 | J14: =(HourPay[[#This Row],[Overtime]])*24*$C$16 -> 18 | K14: =IF(ViewSelect="Day",COUNTIFS(TimeSheet[Code],K$13,TimeSheet[Date],HourPay[[#This Row],[Date]]),COUNTIFS(TimeSheet[Code],K$13,TimeSheet[Date],">="&HourPay[[#This Row],[Date]],TimeSheet[Date],"<="&EOMONTH(HourPay[[#This Row],[Date]],0))) -> 0 | L14: =IF(ViewSelect="Day",COUNTIFS(TimeSheet[Code],L$13,TimeSheet[Date],HourPay[[#This Row],[Date]]),COUNTIFS(TimeSheet[Code],L$13,TimeSheet[Date],">="&HourPay[[#This Row],[Date]],TimeSheet[Date],"<="&EOMONTH(HourPay[[#This Row],[Date]],0))) -> 0 | M14: =IF(ViewSelect="Day",COUNTIFS(TimeSheet[Code],M$13,TimeSheet[Date],HourPay[[#This Row],[Date]]),COUNTIFS(TimeSheet[Code],M$13,TimeSheet[Date],">="&HourPay[[#This Row],[Date]],TimeSheet[Date],"<="&EOMONTH(HourPay[[#This Row],[Date]],0))) -> 0 | N14: =IF(ViewSelect="Day",COUNTIFS(TimeSheet[Code],N$13,TimeSheet[Date],HourPay[[#This Row],[Date]]),COUNTIFS(TimeSheet[Code],N$13,TimeSheet[Date],">="&HourPay[[#This Row],[Date]],TimeSheet[Date],"<="&EOMONTH(HourPay[[#This Row],[Date]],0))) -> 0 | O14: =SUM(HourPay[[#This Row],[Sick]:[Other]]) -> 0
B15: Hourly Pay | C15: 12 | E15: 2016-04-10 | F15: =IF(ViewSelect="day",SUMIFS(TimeSheet[Hours],TimeSheet[Date],$E15),SUMIFS(TimeSheet[Hours],TimeSheet[Date],">="&$E15,TimeSheet[Date],"<="&EOMONTH($E15,0))) -> 0.3333333333 | G15: =IF(ViewSelect="day",SUMIFS(TimeSheet[Overtime],TimeSheet[Date],$E15),SUMIFS(TimeSheet[Overtime],TimeSheet[Date],">="&$E15,TimeSheet[Date],"<="&EOMONTH($E15,0))) -> 0.04166666667 | H15: =IF(ViewSelect="day",SUMIFS(TimeSheet[Hours],TimeSheet[Date],$E15,TimeSheet[Code],"Unpaid"),SUMIFS(TimeSheet[Hours],TimeSheet[Date],">="&$E15,TimeSheet[Date],"<="&EOMONTH($E15,0),TimeSheet[Code],"Unpaid")) -> 0 | I15: =((HourPay[[#This Row],[Hourly]])*24*$C$15)+((HourPay[[#This Row],[Overtime]])*24*$C$16) -> 114 | J15: =(HourPay[[#This Row],[Overtime]])*24*$C$16 -> 18 | K15: =IF(ViewSelect="Day",COUNTIFS(TimeSheet[Code],K$13,TimeSheet[Date],HourPay[[#This Row],[Date]]),COUNTIFS(TimeSheet[Code],K$13,TimeSheet[Date],">="&HourPay[[#This Row],[Date]],TimeSheet[Date],"<="&EOMONTH(HourPay[[#This Row],[Date]],0))) -> 0 | L15: =IF(ViewSelect="Day",COUNTIFS(TimeSheet[Code],L$13,TimeSheet[Date],HourPay[[#This Row],[Date]]),COUNTIFS(TimeSheet[Code],L$13,TimeSheet[Date],">="&HourPay[[#This Row],[Date]],TimeSheet[Date],"<="&EOMONTH(HourPay[[#This Row],[Date]],0))) -> 0 | M15: =IF(ViewSelect="Day",COUNTIFS(TimeSheet[Code],M$13,TimeSheet[Date],HourPay[[#This Row],[Date]]),COUNTIFS(TimeSheet[Code],M$13,TimeSheet[Date],">="&HourPay[[#This Row],[Date]],TimeSheet[Date],"<="&EOMONTH(HourPay[[#This Row],[Date]],0))) -> 0 | N15: =IF(ViewSelect="Day",COUNTIFS(TimeSheet[Code],N$13,TimeSheet[Date],HourPay[[#This Row],[Date]]),COUNTIFS(TimeSheet[Code],N$13,TimeSheet[Date],">="&HourPay[[#This Row],[Date]],TimeSheet[Date],"<="&EOMONTH(HourPay[[#This Row],[Date]],0))) -> 0 | O15: =SUM(HourPay[[#This Row],[Sick]:[Other]]) -> 0
B16: Overtime Pay | C16: 18 | E16: 2016-04-11 | F16: =IF(ViewSelect="day",SUMIFS(TimeSheet[Hours],TimeSheet[Date],$E16),SUMIFS(TimeSheet[Hours],TimeSheet[Date],">="&$E16,TimeSheet[Date],"<="&EOMONTH($E16,0))) -> 0.3333333333 | G16: =IF(ViewSelect="day",SUMIFS(TimeSheet[Overtime],TimeSheet[Date],$E16),SUMIFS(TimeSheet[Overtime],TimeSheet[Date],">="&$E16,TimeSheet[Date],"<="&EOMONTH($E16,0))) -> 0.04166666667 | H16: =IF(ViewSelect="day",SUMIFS(TimeSheet[Hours],TimeSheet[Date],$E16,TimeSheet[Code],"Unpaid"),SUMIFS(TimeSheet[Hours],TimeSheet[Date],">="&$E16,TimeSheet[Date],"<="&EOMONTH($E16,0),TimeSheet[Code],"Unpaid")) -> 0 | I16: =((HourPay[[#This Row],[Hourly]])*24*$C$15)+((HourPay[[#This Row],[Overtime]])*24*$C$16) -> 114 | J16: =(HourPay[[#This Row],[Overtime]])*24*$C$16 -> 18 | K16: =IF(ViewSelect="Day",COUNTIFS(TimeSheet[Code],K$13,TimeSheet[Date],HourPay[[#This Row],[Date]]),COUNTIFS(TimeSheet[Code],K$13,TimeSheet[Date],">="&HourPay[[#This Row],[Date]],TimeSheet[Date],"<="&EOMONTH(HourPay[[#This Row],[Date]],0))) -> 0 | L16: =IF(ViewSelect="Day",COUNTIFS(TimeSheet[Code],L$13,TimeSheet[Date],HourPay[[#This Row],[Date]]),COUNTIFS(TimeSheet[Code],L$13,TimeSheet[Date],">="&HourPay[[#This Row],[Date]],TimeSheet[Date],"<="&EOMONTH(HourPay[[#This Row],[Date]],0))) -> 0 | M16: =IF(ViewSelect="Day",COUNTIFS(TimeSheet[Code],M$13,TimeSheet[Date],HourPay[[#This Row],[Date]]),COUNTIFS(TimeSheet[Code],M$13,TimeSheet[Date],">="&HourPay[[#This Row],[Date]],TimeSheet[Date],"<="&EOMONTH(HourPay[[#This Row],[Date]],0))) -> 0 | N16: =IF(ViewSelect="Day",COUNTIFS(TimeSheet[Code],N$13,TimeSheet[Date],HourPay[[#This Row],[Date]]),COUNTIFS(TimeSheet[Code],N$13,TimeSheet[Date],">="&HourPay[[#This Row],[Date]],TimeSheet[Date],"<="&EOMONTH(HourPay[[#This Row],[Date]],0))) -> 0 | O16: =SUM(HourPay[[#This Row],[Sick]:[Other]]) -> 0
E17: 2016-04-12 | F17: =IF(ViewSelect="day",SUMIFS(TimeSheet[Hours],TimeSheet[Date],$E17),SUMIFS(TimeSheet[Hours],TimeSheet[Date],">="&$E17,TimeSheet[Date],"<="&EOMONTH($E17,0))) -> 0.3333333333 | G17: =IF(ViewSelect="day",SUMIFS(TimeSheet[Overtime],TimeSheet[Date],$E17),SUMIFS(TimeSheet[Overtime],TimeSheet[Date],">="&$E17,TimeSheet[Date],"<="&EOMONTH($E17,0))) -> 0.04166666667 | H17: =IF(ViewSelect="day",SUMIFS(TimeSheet[Hours],TimeSheet[Date],$E17,TimeSheet[Code],"Unpaid"),SUMIFS(TimeSheet[Hours],TimeSheet[Date],">="&$E17,TimeSheet[Date],"<="&EOMONTH($E17,0),TimeSheet[Code],"Unpaid")) -> 0 | I17: =((HourPay[[#This Row],[Hourly]])*24*$C$15)+((HourPay[[#This Row],[Overtime]])*24*$C$16) -> 114 | J17: =(HourPay[[#This Row],[Overtime]])*24*$C$16 -> 18 | K17: =IF(ViewSelect="Day",COUNTIFS(TimeSheet[Code],K$13,TimeSheet[Date],HourPay[[#This Row],[Date]]),COUNTIFS(TimeSheet[Code],K$13,TimeSheet[Date],">="&HourPay[[#This Row],[Date]],TimeSheet[Date],"<="&EOMONTH(HourPay[[#This Row],[Date]],0))) -> 0 | L17: =IF(ViewSelect="Day",COUNTIFS(TimeSheet[Code],L$13,TimeSheet[Date],HourPay[[#This Row],[Date]]),COUNTIFS(TimeSheet[Code],L$13,TimeSheet[Date],">="&HourPay[[#This Row],[Date]],TimeSheet[Date],"<="&EOMONTH(HourPay[[#This Row],[Date]],0))) -> 0 | M17: =IF(ViewSelect="Day",COUNTIFS(TimeSheet[Code],M$13,TimeSheet[Date],HourPay[[#This Row],[Date]]),COUNTIFS(TimeSheet[Code],M$13,TimeSheet[Date],">="&HourPay[[#This Row],[Date]],TimeSheet[Date],"<="&EOMONTH(HourPay[[#This Row],[Date]],0))) -> 0 | N17: =IF(ViewSelect="Day",COUNTIFS(TimeSheet[Code],N$13,TimeSheet[Date],HourPay[[#This Row],[Date]]),COUNTIFS(TimeSheet[Code],N$13,TimeSheet[Date],">="&HourPay[[#This Row],[Date]],TimeSheet[Date],"<="&EOMONTH(HourPay[[#This Row],[Date]],0))) -> 0 | O17: =SUM(HourPay[[#This Row],[Sick]:[Other]]) -> 0
B18: View | C18: Day | E18: 2016-04-13 | F18: =IF(ViewSelect="day",SUMIFS(TimeSheet[Hours],TimeSheet[Date],$E18),SUMIFS(TimeSheet[Hours],TimeSheet[Date],">="&$E18,TimeSheet[Date],"<="&EOMONTH($E18,0))) -> 0.3333333333 | G18: =IF(ViewSelect="day",SUMIFS(TimeSheet[Overtime],TimeSheet[Date],$E18),SUMIFS(TimeSheet[Overtime],TimeSheet[Date],">="&$E18,TimeSheet[Date],"<="&EOMONTH($E18,0))) -> 0.04166666667 | H18: =IF(ViewSelect="day",SUMIFS(TimeSheet[Hours],TimeSheet[Date],$E18,TimeSheet[Code],"Unpaid"),SUMIFS(TimeSheet[Hours],TimeSheet[Date],">="&$E18,TimeSheet[Date],"<="&EOMONTH($E18,0),TimeSheet[Code],"Unpaid")) -> 0 | I18: =((HourPay[[#This Row],[Hourly]])*24*$C$15)+((HourPay[[#This Row],[Overtime]])*24*$C$16) -> 114 | J18: =(HourPay[[#This Row],[Overtime]])*24*$C$16 -> 18 | K18: =IF(ViewSelect="Day",COUNTIFS(TimeSheet[Code],K$13,TimeSheet[Date],HourPay[[#This Row],[Date]]),COUNTIFS(TimeSheet[Code],K$13,TimeSheet[Date],">="&HourPay[[#This Row],[Date]],TimeSheet[Date],"<="&EOMONTH(HourPay[[#This Row],[Date]],0))) -> 0 | L18: =IF(ViewSelect="Day",COUNTIFS(TimeSheet[Code],L$13,TimeSheet[Date],HourPay[[#This Row],[Date]]),COUNTIFS(TimeSheet[Code],L$13,TimeSheet[Date],">="&HourPay[[#This Row],[Date]],TimeSheet[Date],"<="&EOMONTH(HourPay[[#This Row],[Date]],0))) -> 0 | M18: =IF(ViewSelect="Day",COUNTIFS(TimeSheet[Code],M$13,TimeSheet[Date],HourPay[[#This Row],[Date]]),COUNTIFS(TimeSheet[Code],M$13,TimeSheet[Date],">="&HourPay[[#This Row],[Date]],TimeSheet[Date],"<="&EOMONTH(HourPay[[#This Row],[Date]],0))) -> 0 | N18: =IF(ViewSelect="Day",COUNTIFS(TimeSheet[Code],N$13,TimeSheet[Date],HourPay[[#This Row],[Date]]),COUNTIFS(TimeSheet[Code],N$13,TimeSheet[Date],">="&HourPay[[#This Row],[Date]],TimeSheet[Date],"<="&EOMONTH(HourPay[[#This Row],[Date]],0))) -> 0 | O18: =SUM(HourPay[[#This Row],[Sick]:[Other]]) -> 0
E19: 2016-04-14 | F19: =IF(ViewSelect="day",SUMIFS(TimeSheet[Hours],TimeSheet[Date],$E19),SUMIFS(TimeSheet[Hours],TimeSheet[Date],">="&$E19,TimeSheet[Date],"<="&EOMONTH($E19,0))) -> 0.3333333333 | G19: =IF(ViewSelect="day",SUMIFS(TimeSheet[Overtime],TimeSheet[Date],$E19),SUMIFS(TimeSheet[Overtime],TimeSheet[Date],">="&$E19,TimeSheet[Date],"<="&EOMONTH($E19,0))) -> 0.04166666667 | H19: =IF(ViewSelect="day",SUMIFS(TimeSheet[Hours],TimeSheet[Date],$E19,TimeSheet[Code],"Unpaid"),SUMIFS(TimeSheet[Hours],TimeSheet[Date],">="&$E19,TimeSheet[Date],"<="&EOMONTH($E19,0),TimeSheet[Code],"Unpaid")) -> 0 | I19: =((HourPay[[#This Row],[Hourly]])*24*$C$15)+((HourPay[[#This Row],[Overtime]])*24*$C$16) -> 114 | J19: =(HourPay[[#This Row],[Overtime]])*24*$C$16 -> 18 | K19: =IF(ViewSelect="Day",COUNTIFS(TimeSheet[Code],K$13,TimeSheet[Date],HourPay[[#This Row],[Date]]),COUNTIFS(TimeSheet[Code],K$13,TimeSheet[Date],">="&HourPay[[#This Row],[Date]],TimeSheet[Date],"<="&EOMONTH(HourPay[[#This Row],[Date]],0))) -> 0 | L19: =IF(ViewSelect="Day",COUNTIFS(TimeSheet[Code],L$13,TimeSheet[Date],HourPay[[#This Row],[Date]]),COUNTIFS(TimeSheet[Code],L$13,TimeSheet[Date],">="&HourPay[[#This Row],[Date]],TimeSheet[Date],"<="&EOMONTH(HourPay[[#This Row],[Date]],0))) -> 0 | M19: =IF(ViewSelect="Day",COUNTIFS(TimeSheet[Code],M$13,TimeSheet[Date],HourPay[[#This Row],[Date]]),COUNTIFS(TimeSheet[Code],M$13,TimeSheet[Date],">="&HourPay[[#This Row],[Date]],TimeSheet[Date],"<="&EOMONTH(HourPay[[#This Row],[Date]],0))) -> 0 | N19: =IF(ViewSelect="Day",COUNTIFS(TimeSheet[Code],N$13,TimeSheet[Date],HourPay[[#This Row],[Date]]),COUNTIFS(TimeSheet[Code],N$13,TimeSheet[Date],">="&HourPay[[#This Row],[Date]],TimeSheet[Date],"<="&EOMONTH(HourPay[[#This Row],[Date]],0))) -> 0 | O19: =SUM(HourPay[[#This Row],[Sick]:[Other]]) -> 0
E20: 2016-04-15 | F20: =IF(ViewSelect="day",SUMIFS(TimeSheet[Hours],TimeSheet[Date],$E20),SUMIFS(TimeSheet[Hours],TimeSheet[Date],">="&$E20,TimeSheet[Date],"<="&EOMONTH($E20,0))) -> 0.3333333333 | G20: =IF(ViewSelect="day",SUMIFS(TimeSheet[Overtime],TimeSheet[Date],$E20),SUMIFS(TimeSheet[Overtime],TimeSheet[Date],">="&$E20,TimeSheet[Date],"<="&EOMONTH($E20,0))) -> 0.04166666667 | H20: =IF(ViewSelect="day",SUMIFS(TimeSheet[Hours],TimeSheet[Date],$E20,TimeSheet[Code],"Unpaid"),SUMIFS(TimeSheet[Hours],TimeSheet[Date],">="&$E20,TimeSheet[Date],"<="&EOMONTH($E20,0),TimeSheet[Code],"Unpaid")) -> 0 | I20: =((HourPay[[#This Row],[Hourly]])*24*$C$15)+((HourPay[[#This Row],[Overtime]])*24*$C$16) -> 114 | J20: =(HourPay[[#This Row],[Overtime]])*24*$C$16 -> 18 | K20: =IF(ViewSelect="Day",COUNTIFS(TimeSheet[Code],K$13,TimeSheet[Date],HourPay[[#This Row],[Date]]),COUNTIFS(TimeSheet[Code],K$13,TimeSheet[Date],">="&HourPay[[#This Row],[Date]],TimeSheet[Date],"<="&EOMONTH(HourPay[[#This Row],[Date]],0))) -> 0 | L20: =IF(ViewSelect="Day",COUNTIFS(TimeSheet[Code],L$13,TimeSheet[Date],HourPay[[#This Row],[Date]]),COUNTIFS(TimeSheet[Code],L$13,TimeSheet[Date],">="&HourPay[[#This Row],[Date]],TimeSheet[Date],"<="&EOMONTH(HourPay[[#This Row],[Date]],0))) -> 0 | M20: =IF(ViewSelect="Day",COUNTIFS(TimeSheet[Code],M$13,TimeSheet[Date],HourPay[[#This Row],[Date]]),COUNTIFS(TimeSheet[Code],M$13,TimeSheet[Date],">="&HourPay[[#This Row],[Date]],TimeSheet[Date],"<="&EOMONTH(HourPay[[#This Row],[Date]],0))) -> 0 | N20: =IF(ViewSelect="Day",COUNTIFS(TimeSheet[Code],N$13,TimeSheet[Date],HourPay[[#This Row],[Date]]),COUNTIFS(TimeSheet[Code],N$13,TimeSheet[Date],">="&HourPay[[#This Row],[Date]],TimeSheet[Date],"<="&EOMONTH(HourPay[[#This Row],[Date]],0))) -> 0 | O20: =SUM(HourPay[[#This Row],[Sick]:[Other]]) -> 0
E21: 2016-04-16 | F21: =IF(ViewSelect="day",SUMIFS(TimeSheet[Hours],TimeSheet[Date],$E21),SUMIFS(TimeSheet[Hours],TimeSheet[Date],">="&$E21,TimeSheet[Date],"<="&EOMONTH($E21,0))) -> 0.2708333333 | G21: =IF(ViewSelect="day",SUMIFS(TimeSheet[Overtime],TimeSheet[Date],$E21),SUMIFS(TimeSheet[Overtime],TimeSheet[Date],">="&$E21,TimeSheet[Date],"<="&EOMONTH($E21,0))) -> 0 | H21: =IF(ViewSelect="day",SUMIFS(TimeSheet[Hours],TimeSheet[Date],$E21,TimeSheet[Code],"Unpaid"),SUMIFS(TimeSheet[Hours],TimeSheet[Date],">="&$E21,TimeSheet[Date],"<="&EOMONTH($E21,0),TimeSheet[Code],"Unpaid")) -> 0 | I21: =((HourPay[[#This Row],[Hourly]])*24*$C$15)+((HourPay[[#This Row],[Overtime]])*24*$C$16) -> 78 | J21: =(HourPay[[#This Row],[Overtime]])*24*$C$16 -> 0 | K21: =IF(ViewSelect="Day",COUNTIFS(TimeSheet[Code],K$13,TimeSheet[Date],HourPay[[#This Row],[Date]]),COUNTIFS(TimeSheet[Code],K$13,TimeSheet[Date],">="&HourPay[[#This Row],[Date]],TimeSheet[Date],"<="&EOMONTH(HourPay[[#This Row],[Date]],0))) -> 0 | L21: =IF(ViewSelect="Day",COUNTIFS(TimeSheet[Code],L$13,TimeSheet[Date],HourPay[[#This Row],[Date]]),COUNTIFS(TimeSheet[Code],L$13,TimeSheet[Date],">="&HourPay[[#This Row],[Date]],TimeSheet[Date],"<="&EOMONTH(HourPay[[#This Row],[Date]],0))) -> 1 | M21: =IF(ViewSelect="Day",COUNTIFS(TimeSheet[Code],M$13,TimeSheet[Date],HourPay[[#This Row],[Date]]),COUNTIFS(TimeSheet[Code],M$13,TimeSheet[Date],">="&HourPay[[#This Row],[Date]],TimeSheet[Date],"<="&EOMONTH(HourPay[[#This Row],[Date]],0))) -> 0 | N21: =IF(ViewSelect="Day",COUNTIFS(TimeSheet[Code],N$13,TimeSheet[Date],HourPay[[#This Row],[Date]]),COUNTIFS(TimeSheet[Code],N$13,TimeSheet[Date],">="&HourPay[[#This Row],[Date]],TimeSheet[Date],"<="&EOMONTH(HourPay[[#This Row],[Date]],0))) -> 0 | O21: =SUM(HourPay[[#This Row],[Sick]:[Other]]) -> 1
E22: 2016-04-17 | F22: =IF(ViewSelect="day",SUMIFS(TimeSheet[Hours],TimeSheet[Date],$E22),SUMIFS(TimeSheet[Hours],TimeSheet[Date],">="&$E22,TimeSheet[Date],"<="&EOMONTH($E22,0))) -> 0.2916666667 | G22: =IF(ViewSelect="day",SUMIFS(TimeSheet[Overtime],TimeSheet[Date],$E22),SUMIFS(TimeSheet[Overtime],TimeSheet[Date],">="&$E22,TimeSheet[Date],"<="&EOMONTH($E22,0))) -> 0 | H22: =IF(ViewSelect="day",SUMIFS(TimeSheet[Hours],TimeSheet[Date],$E22,TimeSheet[Code],"Unpaid"),SUMIFS(TimeSheet[Hours],TimeSheet[Date],">="&$E22,TimeSheet[Date],"<="&EOMONTH($E22,0),TimeSheet[Code],"Unpaid")) -> 0 | I22: =((HourPay[[#This Row],[Hourly]])*24*$C$15)+((HourPay[[#This Row],[Overtime]])*24*$C$16) -> 84 | J22: =(HourPay[[#This Row],[Overtime]])*24*$C$16 -> 0 | K22: =IF(ViewSelect="Day",COUNTIFS(TimeSheet[Code],K$13,TimeSheet[Date],HourPay[[#This Row],[Date]]),COUNTIFS(TimeSheet[Code],K$13,TimeSheet[Date],">="&HourPay[[#This Row],[Date]],TimeSheet[Date],"<="&EOMONTH(HourPay[[#This Row],[Date]],0))) -> 0 | L22: =IF(ViewSelect="Day",COUNTIFS(TimeSheet[Code],L$13,TimeSheet[Date],HourPay[[#This Row],[Date]]),COUNTIFS(TimeSheet[Code],L$13,TimeSheet[Date],">="&HourPay[[#This Row],[Date]],TimeSheet[Date],"<="&EOMONTH(HourPay[[#This Row],[Date]],0))) -> 1 | M22: =IF(ViewSelect="Day",COUNTIFS(TimeSheet[Code],M$13,TimeSheet[Date],HourPay[[#This Row],[Date]]),COUNTIFS(TimeSheet[Code],M$13,TimeSheet[Date],">="&HourPay[[#This Row],[Date]],TimeSheet[Date],"<="&EOMONTH(HourPay[[#This Row],[Date]],0))) -> 0 | N22: =IF(ViewSelect="Day",COUNTIFS(TimeSheet[Code],N$13,TimeSheet[Date],HourPay[[#This Row],[Date]]),COUNTIFS(TimeSheet[Code],N$13,TimeSheet[Date],">="&HourPay[[#This Row],[Date]],TimeSheet[Date],"<="&EOMONTH(HourPay[[#This Row],[Date]],0))) -> 0 | O22: =SUM(HourPay[[#This Row],[Sick]:[Other]]) -> 1
E23: 2016-04-18 | F23: =IF(ViewSelect="day",SUMIFS(TimeSheet[Hours],TimeSheet[Date],$E23),SUMIFS(TimeSheet[Hours],TimeSheet[Date],">="&$E23,TimeSheet[Date],"<="&EOMONTH($E23,0))) -> 0.2916666667 | G23: =IF(ViewSelect="day",SUMIFS(TimeSheet[Overtime],TimeSheet[Date],$E23),SUMIFS(TimeSheet[Overtime],TimeSheet[Date],">="&$E23,TimeSheet[Date],"<="&EOMONTH($E23,0))) -> 0 | H23: =IF(ViewSelect="day",SUMIFS(TimeSheet[Hours],TimeSheet[Date],$E23,TimeSheet[Code],"Unpaid"),SUMIFS(TimeSheet[Hours],TimeSheet[Date],">="&$E23,TimeSheet[Date],"<="&EOMONTH($E23,0),TimeSheet[Code],"Unpaid")) -> 0 | I23: =((HourPay[[#This Row],[Hourly]])*24*$C$15)+((HourPay[[#This Row],[Overtime]])*24*$C$16) -> 84 | J23: =(HourPay[[#This Row],[Overtime]])*24*$C$16 -> 0 | K23: =IF(ViewSelect="Day",COUNTIFS(TimeSheet[Code],K$13,TimeSheet[Date],HourPay[[#This Row],[Date]]),COUNTIFS(TimeSheet[Code],K$13,TimeSheet[Date],">="&HourPay[[#This Row],[Date]],TimeSheet[Date],"<="&EOMONTH(HourPay[[#This Row],[Date]],0))) -> 0 | L23: =IF(ViewSelect="Day",COUNTIFS(TimeSheet[Code],L$13,TimeSheet[Date],HourPay[[#This Row],[Date]]),COUNTIFS(TimeSheet[Code],L$13,TimeSheet[Date],">="&HourPay[[#This Row],[Date]],TimeSheet[Date],"<="&EOMONTH(HourPay[[#This Row],[Date]],0))) -> 1 | M23: =IF(ViewSelect="Day",COUNTIFS(TimeSheet[Code],M$13,TimeSheet[Date],HourPay[[#This Row],[Date]]),COUNTIFS(TimeSheet[Code],M$13,TimeSheet[Date],">="&HourPay[[#This Row],[Date]],TimeSheet[Date],"<="&EOMONTH(HourPay[[#This Row],[Date]],0))) -> 0 | N23: =IF(ViewSelect="Day",COUNTIFS(TimeSheet[Code],N$13,TimeSheet[Date],HourPay[[#This Row],[Date]]),COUNTIFS(TimeSheet[Code],N$13,TimeSheet[Date],">="&HourPay[[#This Row],[Date]],TimeSheet[Date],"<="&EOMONTH(HourPay[[#This Row],[Date]],0))) -> 0 | O23: =SUM(HourPay[[#This Row],[Sick]:[Other]]) -> 1
E24: 2016-04-19 | F24: =IF(ViewSelect="day",SUMIFS(TimeSheet[Hours],TimeSheet[Date],$E24),SUMIFS(TimeSheet[Hours],TimeSheet[Date],">="&$E24,TimeSheet[Date],"<="&EOMONTH($E24,0))) -> 0.2916666667 | G24: =IF(ViewSelect="day",SUMIFS(TimeSheet[Overtime],TimeSheet[Date],$E24),SUMIFS(TimeSheet[Overtime],TimeSheet[Date],">="&$E24,TimeSheet[Date],"<="&EOMONTH($E24,0))) -> 5.551115123e-17 | H24: =IF(ViewSelect="day",SUMIFS(TimeSheet[Hours],TimeSheet[Date],$E24,TimeSheet[Code],"Unpaid"),SUMIFS(TimeSheet[Hours],TimeSheet[Date],">="&$E24,TimeSheet[Date],"<="&EOMONTH($E24,0),TimeSheet[Code],"Unpaid")) -> 0 | I24: =((HourPay[[#This Row],[Hourly]])*24*$C$15)+((HourPay[[#This Row],[Overtime]])*24*$C$16) -> 84 | J24: =(HourPay[[#This Row],[Overtime]])*24*$C$16 -> 2.398081733e-14 | K24: =IF(ViewSelect="Day",COUNTIFS(TimeSheet[Code],K$13,TimeSheet[Date],HourPay[[#This Row],[Date]]),COUNTIFS(TimeSheet[Code],K$13,TimeSheet[Date],">="&HourPay[[#This Row],[Date]],TimeSheet[Date],"<="&EOMONTH(HourPay[[#This Row],[Date]],0))) -> 1 | L24: =IF(ViewSelect="Day",COUNTIFS(TimeSheet[Code],L$13,TimeSheet[Date],HourPay[[#This Row],[Date]]),COUNTIFS(TimeSheet[Code],L$13,TimeSheet[Date],">="&HourPay[[#This Row],[Date]],TimeSheet[Date],"<="&EOMONTH(HourPay[[#This Row],[Date]],0))) -> 0 | M24: =IF(ViewSelect="Day",COUNTIFS(TimeSheet[Code],M$13,TimeSheet[Date],HourPay[[#This Row],[Date]]),COUNTIFS(TimeSheet[Code],M$13,TimeSheet[Date],">="&HourPay[[#This Row],[Date]],TimeSheet[Date],"<="&EOMONTH(HourPay[[#This Row],[Date]],0))) -> 0 | N24: =IF(ViewSelect="Day",COUNTIFS(TimeSheet[Code],N$13,TimeSheet[Date],HourPay[[#This Row],[Date]]),COUNTIFS(TimeSheet[Code],N$13,TimeSheet[Date],">="&HourPay[[#This Row],[Date]],TimeSheet[Date],"<="&EOMONTH(HourPay[[#This Row],[Date]],0))) -> 0 | O24: =SUM(HourPay[[#This Row],[Sick]:[Other]]) -> 1
E25: =IF(ViewSelect="Month",EDATE(EOMONTH(MAX(TimeSheet[Date]),-1)+1,-$A$1),IF(ViewSelect="Year",DATE(YEAR(MAX(TimeSheet[Date]))-$A$1,12,1),MAX(TimeSheet[Date])-$A$1)) -> 2016-04-20 | F25: =IF(ViewSelect="day",SUMIFS(TimeSheet[Hours],TimeSheet[Date],$E25),SUMIFS(TimeSheet[Hours],TimeSheet[Date],">="&$E25,TimeSheet[Date],"<="&EOMONTH($E25,0))) -> 0.2916666667 | G25: =IF(ViewSelect="day",SUMIFS(TimeSheet[Overtime],TimeSheet[Date],$E25),SUMIFS(TimeSheet[Overtime],TimeSheet[Date],">="&$E25,TimeSheet[Date],"<="&EOMONTH($E25,0))) -> 0 | H25: =IF(ViewSelect="day",SUMIFS(TimeSheet[Hours],TimeSheet[Date],$E25,TimeSheet[Code],"Unpaid"),SUMIFS(TimeSheet[Hours],TimeSheet[Date],">="&$E25,TimeSheet[Date],"<="&EOMONTH($E25,0),TimeSheet[Code],"Unpaid")) -> 0.2916666667 | I25: =((HourPay[[#This Row],[Hourly]])*24*$C$15)+((HourPay[[#This Row],[Overtime]])*24*$C$16) -> 84 | J25: =(HourPay[[#This Row],[Overtime]])*24*$C$16 -> 0 | K25: =IF(ViewSelect="Day",COUNTIFS(TimeSheet[Code],K$13,TimeSheet[Date],HourPay[[#This Row],[Date]]),COUNTIFS(TimeSheet[Code],K$13,TimeSheet[Date],">="&HourPay[[#This Row],[Date]],TimeSheet[Date],"<="&EOMONTH(HourPay[[#This Row],[Date]],0))) -> 0 | L25: =IF(ViewSelect="Day",COUNTIFS(TimeSheet[Code],L$13,TimeSheet[Date],HourPay[[#This Row],[Date]]),COUNTIFS(TimeSheet[Code],L$13,TimeSheet[Date],">="&HourPay[[#This Row],[Date]],TimeSheet[Date],"<="&EOMONTH(HourPay[[#This Row],[Date]],0))) -> 0 | M25: =IF(ViewSelect="Day",COUNTIFS(TimeSheet[Code],M$13,TimeSheet[Date],HourPay[[#This Row],[Date]]),COUNTIFS(TimeSheet[Code],M$13,TimeSheet[Date],">="&HourPay[[#This Row],[Date]],TimeSheet[Date],"<="&EOMONTH(HourPay[[#This Row],[Date]],0))) -> 1 | N25: =IF(ViewSelect="Day",COUNTIFS(TimeSheet[Code],N$13,TimeSheet[Date],HourPay[[#This Row],[Date]]),COUNTIFS(TimeSheet[Code],N$13,TimeSheet[Date],">="&HourPay[[#This Row],[Date]],TimeSheet[Date],"<="&EOMONTH(HourPay[[#This Row],[Date]],0))) -> 0 | O25: =SUM(HourPay[[#This Row],[Sick]:[Other]]) -> 1
E26: Total | F26: =SUM(F14:F25) -> 3.770833333 | G26: =SUM(G14:G25) -> 0.2916666667 | H26: =IF(ViewSelect="day",SUMIFS(TimeSheet[Hours],TimeSheet[Date],$E26,TimeSheet[Code],"Unpaid"),SUMIFS(TimeSheet[Hours],TimeSheet[Date],">="&$E26,TimeSheet[Date],"<="&EOMONTH($E26,0),TimeSheet[Code],"Unpaid")) -> 0 | I26: =((HourPay[[#This Row],[Hourly]])*24*$C$15)+((HourPay[[#This Row],[Overtime]])*24*$C$16) -> 1212 | J26: =(HourPay[[#This Row],[Overtime]])*24*$C$16 -> 126 | K26: =SUBTOTAL(109,Timesheet!$K$14:$K$25) -> 1 | L26: =SUBTOTAL(109,Timesheet!$L$14:$L$25) -> 3 | M26: =SUBTOTAL(109,Timesheet!$M$14:$M$25) -> 1 | N26: =SUBTOTAL(109,Timesheet!$N$14:$N$25) -> 0 | O26: =SUBTOTAL(109,Timesheet!$O$14:$O$25) -> 5
E28: Quarter | F28: Hourly | G28: Overtime | H28: Unpaid Time | I28: Gross Pay | J28: Overtime Pay | K28: Sick | L28: Holiday | M28: Unpaid | N28: Other | O28: Total
E29: ="1st Quarter " & YEAR($E$25) -> 1st Quarter 2016 | F29: =SUMIFS(TimeSheet[Hours],TimeSheet[Date],">="&DATE((YEAR($E$25)),1,1),TimeSheet[Date],"<="&(EOMONTH(DATE(YEAR($E$25),3,1),0))) -> 1.75 | G29: =SUMIFS(TimeSheet[Overtime],TimeSheet[Date],">="&DATE((YEAR($E$25)),1,1),TimeSheet[Date],"<="&(EOMONTH(DATE(YEAR($E$25),3,1),0))) -> 0.2916666667 | H29: =SUMIFS(TimeSheet[Hours],TimeSheet[Date],">="&DATE((YEAR($E$25)),1,1),TimeSheet[Date],"<="&(EOMONTH(DATE(YEAR($E$25),3,1),0)),TimeSheet[Code],"Unpaid") -> 0 | I29: =((F29)*24*$C$15)+((F29)*24*$C$16) -> 1260 | J29: =(G29)*24*$C$16 -> 126 | K29: =COUNTIFS(TimeSheet[Code],K$28,TimeSheet[Date],">="&DATE((YEAR($E$25)),1,1),TimeSheet[Date],"<="&(EOMONTH(DATE(YEAR($E$25),3,1),0))) -> 0 | L29: =COUNTIFS(TimeSheet[Code],L$28,TimeSheet[Date],">="&DATE((YEAR($E$25)),1,1),TimeSheet[Date],"<="&(EOMONTH(DATE(YEAR($E$25),3,1),0))) -> 0 | M29: =COUNTIFS(TimeSheet[Code],M$28,TimeSheet[Date],">="&DATE((YEAR($E$25)),1,1),TimeSheet[Date],"<="&(EOMONTH(DATE(YEAR($E$25),3,1),0))) -> 0 | N29: =COUNTIFS(TimeSheet[Code],N$28,TimeSheet[Date],">="&DATE((YEAR($E$25)),1,1),TimeSheet[Date],"<="&(EOMONTH(DATE(YEAR($E$25),3,1),0))) -> 0 | O29: =SUM(K29:N29) -> 0
E30: ="2nd Quarter " & YEAR($E$25) -> 2nd Quarter 2016 | F30: =SUMIFS(TimeSheet[Hours],TimeSheet[Date],">="&DATE((YEAR($E$25)),4,1),TimeSheet[Date],"<="&(EOMONTH(DATE(YEAR($E$25),6,1),0))) -> 6.340277778 | G30: =SUMIFS(TimeSheet[Overtime],TimeSheet[Date],">="&DATE((YEAR($E$25)),4,1),TimeSheet[Date],"<="&(EOMONTH(DATE(YEAR($E$25),6,1),0))) -> 0.5694444444 | H30: =SUMIFS(TimeSheet[Hours],TimeSheet[Date],">="&DATE((YEAR($E$25)),4,1),TimeSheet[Date],"<="&(EOMONTH(DATE(YEAR($E$25),6,1),0)),TimeSheet[Code],"Unpaid") -> 0.2916666667 | I30: =((F30)*24*$C$15)+((F30)*24*$C$16) -> 4565 | J30: =(G30)*24*$C$16 -> 246 | K30: =COUNTIFS(TimeSheet[Code],K$28,TimeSheet[Date],">="&DATE((YEAR($E$25)),4,1),TimeSheet[Date],"<="&(EOMONTH(DATE(YEAR($E$25),6,1),0))) -> 1 | L30: =COUNTIFS(TimeSheet[Code],L$28,TimeSheet[Date],">="&DATE((YEAR($E$25)),4,1),TimeSheet[Date],"<="&(EOMONTH(DATE(YEAR($E$25),6,1),0))) -> 3 | M30: =COUNTIFS(TimeSheet[Code],M$28,TimeSheet[Date],">="&DATE((YEAR($E$25)),4,1),TimeSheet[Date],"<="&(EOMONTH(DATE(YEAR($E$25),6,1),0))) -> 1 | N30: =COUNTIFS(TimeSheet[Code],N$28,TimeSheet[Date],">="&DATE((YEAR($E$25)),4,1),TimeSheet[Date],"<="&(EOMONTH(DATE(YEAR($E$25),6,1),0))) -> 0 | O30: =SUM(K30:N30) -> 5
E31: ="3rd Quarter " & YEAR($E$25) -> 3rd Quarter 2016 | F31: =SUMIFS(TimeSheet[Hours],TimeSheet[Date],">="&DATE((YEAR($E$25)),7,1),TimeSheet[Date],"<="&(EOMONTH(DATE(YEAR($E$25),9,1),0))) -> 0 | G31: =SUMIFS(TimeSheet[Overtime],TimeSheet[Date],">="&DATE((YEAR($E$25)),7,1),TimeSheet[Date],"<="&(EOMONTH(DATE(YEAR($E$25),9,1),0))) -> 0 | H31: =SUMIFS(TimeSheet[Hours],TimeSheet[Date],">="&DATE((YEAR($E$25)),7,1),TimeSheet[Date],"<="&(EOMONTH(DATE(YEAR($E$25),9,1),0)),TimeSheet[Code],"Unpaid") -> 0 | I31: 0 | J31: 0 | K31: =COUNTIFS(TimeSheet[Code],K$28,TimeSheet[Date],">="&DATE((YEAR($E$25)),7,1),TimeSheet[Date],"<="&(EOMONTH(DATE(YEAR($E$25),9,1),0))) -> 0 | L31: =COUNTIFS(TimeSheet[Code],L$28,TimeSheet[Date],">="&DATE((YEAR($E$25)),7,1),TimeSheet[Date],"<="&(EOMONTH(DATE(YEAR($E$25),9,1),0))) -> 0 | M31: =COUNTIFS(TimeSheet[Code],M$28,TimeSheet[Date],">="&DATE((YEAR($E$25)),7,1),TimeSheet[Date],"<="&(EOMONTH(DATE(YEAR($E$25),9,1),0))) -> 0 | N31: =COUNTIFS(TimeSheet[Code],N$28,TimeSheet[Date],">="&DATE((YEAR($E$25)),7,1),TimeSheet[Date],"<="&(EOMONTH(DATE(YEAR($E$25),9,1),0))) -> 0 | O31: 0
E32: ="4th Quarter " & YEAR($E$25) -> 4th Quarter 2016 | F32: =SUMIFS(TimeSheet[Hours],TimeSheet[Date],">="&DATE((YEAR($E$25)),10,1),TimeSheet[Date],"<="&(EOMONTH(DATE(YEAR($E$25),12,1),0))) -> 0 | G32: =SUMIFS(TimeSheet[Overtime],TimeSheet[Date],">="&DATE((YEAR($E$25)),10,1),TimeSheet[Date],"<="&(EOMONTH(DATE(YEAR($E$25),12,1),0))) -> 0 | H32: =SUMIFS(TimeSheet[Hours],TimeSheet[Date],">="&DATE((YEAR($E$25)),10,1),TimeSheet[Date],"<="&(EOMONTH(DATE(YEAR($E$25),12,1),0)),TimeSheet[Code],"Unpaid") -> 0 | I32: 0 | J32: 0 | K32: =COUNTIFS(TimeSheet[Code],K$28,TimeSheet[Date],">="&DATE((YEAR($E$25)),10,1),TimeSheet[Date],"<="&(EOMONTH(DATE(YEAR($E$25),12,1),0))) -> 0 | L32: =COUNTIFS(TimeSheet[Code],L$28,TimeSheet[Date],">="&DATE((YEAR($E$25)),10,1),TimeSheet[Date],"<="&(EOMONTH(DATE(YEAR($E$25),12,1),0))) -> 0 | M32: =COUNTIFS(TimeSheet[Code],M$28,TimeSheet[Date],">="&DATE((YEAR($E$25)),10,1),TimeSheet[Date],"<="&(EOMONTH(DATE(YEAR($E$25),12,1),0))) -> 0 | N32: =COUNTIFS(TimeSheet[Code],N$28,TimeSheet[Date],">="&DATE((YEAR($E$25)),10,1),TimeSheet[Date],"<="&(EOMONTH(DATE(YEAR($E$25),12,1),0))) -> 0 | O32: 0
E33: Total | F33: =SUM(F29:F32) -> 8.090277778 | G33: 0.8611111111 | H33: 0.2916666667 | I33: 5825 | J33: 372 | K33: 1 | L33: =SUM(L29:L32) -> 3 | M33: 1 | N33: 0 | O33: 5
